bitfinex/quotes_BTCUSD_20240731
["timestamp","ask_amount","ask_price","bid_price","bid_amount"]
[1722421459655,0.02977075,66254.0,66253.0,0.33384604]
[1722421460616,0.02976499,66254.0,66253.0,0.33384604]
[1722421462052,0.0298138,66254.0,66253.0,0.33384604]
[1722421465331,0.02975825,66254.0,66253.0,0.33384604]
[1722421468599,0.18069744,66254.0,66253.0,0.33384604]
[1722421472033,0.18058062,66254.0,66253.0,0.33384604]
[1722421474325,0.18057604,66254.0,66253.0,0.33384604]
[1722421475474,0.18057516,66254.0,66253.0,0.33384604]
[1722421475647,0.19650175,66254.0,66253.0,0.33384604]
[1722421475869,0.18057516,66254.0,66253.0,0.33384604]
[1722421478745,0.18058041,66254.0,66253.0,0.33384604]
[1722421480771,0.48235626,66254.0,66253.0,0.33384604]
[1722421481933,0.18048826,66254.0,66253.0,0.33384604]
[1722421482138,0.18043268,66254.0,66253.0,0.33384604]
[1722421482336,0.48230068,66254.0,66253.0,0.33384604]
[1722421482770,0.18043268,66254.0,66253.0,0.33384604]
[1722421485414,0.1804259,66254.0,66253.0,0.33384604]
[1722421485533,0.16455642,66254.0,66253.0,0.33384604]
[1722421485746,0.1804259,66254.0,66253.0,0.33384604]
[1722421488238,0.16455642,66254.0,66253.0,0.33384604]
[1722421489286,0.46742442,66254.0,66253.0,0.33384604]
[1722421489620,0.46642442,66254.0,66253.0,0.33384604]
[1722421491423,0.46742442,66254.0,66253.0,0.33384604]
[1722421491580,0.47678175,66254.0,66253.0,0.33384604]
[1722421492356,0.86544975,66254.0,66253.0,0.25754604]
[1722421492571,0.92964975,66254.0,66253.0,0.25754604]
[1722421494649,0.56258175,66254.0,66253.0,0.25754604]
[1722421494903,0.56258175,66254.0,66253.0,0.33714604]
[1722421495157,0.55322442,66254.0,66253.0,0.33714604]
[1722421495591,0.46642442,66254.0,66253.0,0.33714604]
[1722421495815,0.16455642,66254.0,66253.0,0.33714604]
[1722421496017,0.16455642,66254.0,66253.0,0.40334604]
[1722421498049,0.01362242,66254.0,66253.0,0.40334604]
[1722421498546,0.16455642,66254.0,66253.0,0.40334604]
[1722421499137,0.16455642,66254.0,66253.0,0.33714604]
[1722421499726,0.46642442,66254.0,66253.0,0.33714604]
[1722421499925,0.16555642,66254.0,66253.0,0.33714604]
[1722421501121,0.46742442,66254.0,66253.0,0.33714604]
[1722421510336,0.01362242,66254.0,66253.0,0.33714604]
[1722421510538,0.16455642,66254.0,66253.0,0.33714604]
[1722421510695,0.46642442,66254.0,66253.0,0.33714604]
[1722421519611,0.46742442,66254.0,66253.0,0.33714604]
[1722421527592,0.77865686,66254.0,66253.0,0.33714604]
[1722421528709,0.47678886,66254.0,66253.0,0.33714604]
[1722421529609,0.77865686,66254.0,66253.0,0.33714604]
[1722421530963,0.77865728,66254.0,66253.0,0.33714604]
[1722421532553,0.86545728,66254.0,66253.0,0.33714604]
[1722421534429,0.85609242,66254.0,66253.0,0.33714604]
[1722421534552,0.86545865,66254.0,66253.0,0.33714604]
[1722421537891,0.86545914,66254.0,66253.0,0.33714604]
[1722421571788,0.531532,66254.0,66253.0,0.31884604]
[1722421572196,0.07873,66254.0,66253.0,0.31884604]
[1722421603448,1.50602842,66254.0,66253.0,0.100913]
[1722421603597,1.59282842,66254.0,66253.0,0.100913]
[1722421603798,1.428272,66254.0,66253.0,0.100913]
[1722421604097,1.579206,66254.0,66253.0,0.100913]
[1722421604854,1.881074,66254.0,66253.0,0.100913]
[1722421605252,1.579206,66254.0,66253.0,0.100913]
[1722421605634,1.569206,66254.0,66253.0,0.100913]
[1722421605998,1.570206,66254.0,66253.0,0.100913]
[1722421606370,1.570206,66254.0,66253.0,0.000913]
[1722421638106,1.144401,66250.0,66249.0,0.23223801]
[1722421641137,1.144401,66250.0,66249.0,0.23196684]
[1722421642226,0.842515,66250.0,66249.0,0.23196684]
[1722421642386,0.842515,66250.0,66249.0,0.29576684]
[1722421645844,1.144401,66250.0,66249.0,0.29576684]
[1722421649280,1.15325065,66250.0,66249.0,0.29576684]
[1722421650459,1.15325065,66250.0,66249.0,0.23196684]
[1722421665960,1.15408065,66250.0,66249.0,0.23196684]
[1722421668808,1.15408065,66250.0,66249.0,0.0840338]
[1722421668986,1.21608065,66250.0,66249.0,0.0010338]
[1722421670532,1.51796665,66250.0,66249.0,0.0010338]
[1722421670662,1.54096665,66250.0,66249.0,0.0010338]
[1722421670862,1.62016665,66250.0,66249.0,0.0010338]
[1722421672064,1.92205265,66250.0,66249.0,0.0010338]
[1722421675210,1.83525265,66250.0,66249.0,0.0010338]
[1722421675479,1.62016665,66250.0,66249.0,0.0010338]
[1722421682305,1.72016665,66250.0,66249.0,0.0010338]
[1722421685800,1.359734,66238.0,66237.0,0.000913]
[1722421686007,1.532934,66238.0,66237.0,0.000913]
[1722421686208,1.53259151,66238.0,66237.0,0.000913]
[1722421687021,1.53259151,66238.0,66237.0,0.006913]
[1722421687724,1.53259151,66238.0,66237.0,0.014913]
[1722421690617,1.53259151,66238.0,66237.0,0.006913]
[1722421690816,1.53259151,66238.0,66237.0,0.000913]
[1722421691022,1.53259151,66238.0,66237.0,0.004913]
[1722421691244,1.53259151,66238.0,66237.0,0.007913]
[1722421697456,1.83453251,66238.0,66237.0,0.007913]
[1722421697823,1.93453251,66238.0,66237.0,0.007913]
[1722421698409,1.94368122,66238.0,66237.0,0.007913]
[1722421699244,1.94548091,66238.0,66237.0,0.007913]
[1722421700758,1.64353991,66238.0,66237.0,0.007913]
[1722421700956,1.58013991,66238.0,66237.0,0.007913]
[1722421729547,1.58096991,66238.0,66237.0,0.007913]
[1722421731240,1.71560536,66238.0,66237.0,0.007913]
[1722421731440,1.64536991,66238.0,66237.0,0.007913]
[1722421732446,0.150979,66234.0,66233.0,0.047752]
[1722421732665,0.15164551,66230.0,66229.0,0.000913]
[1722421732885,0.86539951,66230.0,66229.0,0.000913]
[1722421733085,1.16737651,66230.0,66229.0,0.000913]
[1722421733890,1.1691762,66230.0,66229.0,0.000913]
[1722421734299,1.1691762,66230.0,66229.0,0.012913]
[1722421734500,1.1691762,66230.0,66229.0,0.000913]
[1722421734718,1.1691762,66230.0,66229.0,0.007913]
[1722421735025,1.1691762,66230.0,66229.0,0.012913]
[1722421735218,1.1691762,66230.0,66229.0,0.075313]
[1722421735592,1.1691762,66230.0,66229.0,0.158513]
[1722421741389,1.1691762,66230.0,66229.0,0.096113]
[1722421743417,1.8383302,66230.0,66229.0,0.012913]
[1722421743597,1.8383302,66230.0,66222.0,0.000913]
[1722421743598,1.05768851,66223.0,66222.0,0.000913]
[1722421743801,1.7195972,66223.0,66222.0,0.000913]
[1722421743960,2.0216062,66223.0,66222.0,0.000913]
[1722421744159,2.0316062,66223.0,66222.0,0.000913]
[1722421744359,2.0216062,66223.0,66222.0,0.000913]
[1722421744770,2.0316062,66223.0,66222.0,0.000913]
[1722421745027,2.0216062,66223.0,66222.0,0.000913]
[1722421745231,2.0346062,66223.0,66222.0,0.001913]
[1722421745408,2.0246062,66223.0,66222.0,0.001913]
[1722421746842,2.0376062,66223.0,66222.0,0.002913]
[1722421747261,2.0476062,66223.0,66222.0,0.002913]
[1722421747806,2.0376062,66223.0,66222.0,0.002913]
[1722421752533,2.18830052,66223.0,66222.0,0.002913]
[1722421752729,1.5004972,66223.0,66222.0,0.002913]
[1722421753085,1.5872972,66223.0,66222.0,0.002913]
[1722421754195,1.59630082,66223.0,66222.0,0.002913]
[1722421754969,1.29429182,66223.0,66222.0,0.142613]
[1722421756200,0.69027382,66223.0,66222.0,0.142613]
[1722421756406,0.66727382,66223.0,66222.0,0.142613]
[1722421756565,0.96928282,66223.0,66222.0,0.142613]
[1722421756769,0.27846482,66223.0,66222.0,0.29324604]
[1722421757032,0.36526482,66223.0,66222.0,0.29324604]
[1722421757251,0.66727382,66223.0,66222.0,0.29324604]
[1722421757426,0.96928282,66223.0,66222.0,0.29324604]
[1722421759801,0.01779969,66223.0,66222.0,0.29324604]
[1722421760354,0.16880369,66223.0,66222.0,0.29324604]
[1722421760554,0.15580369,66223.0,66222.0,0.29224604]
[1722421761061,0.16080369,66223.0,66222.0,0.29224604]
[1722421761452,0.01779969,66223.0,66222.0,0.29324604]
[1722421761656,0.16880369,66223.0,66222.0,0.29324604]
[1722421762101,0.1694612,66223.0,66222.0,0.29324604]
[1722421762411,0.16880369,66223.0,66222.0,0.29324604]
[1722421763573,0.01779969,66223.0,66222.0,0.29324604]
[1722421763764,0.01779969,66223.0,66222.0,0.44425304]
[1722421763938,0.01779969,66223.0,66222.0,0.74626704]
[1722421764309,0.01779969,66223.0,66222.0,0.44425304]
[1722421764713,0.01779969,66223.0,66222.0,0.29324604]
[1722421764913,0.01779969,66223.0,66222.0,0.44571364]
[1722421765213,0.01779969,66223.0,66222.0,0.44425304]
[1722421772745,0.01779969,66223.0,66222.0,0.74626704]
[1722421773324,0.01779969,66223.0,66222.0,1.04828104]
[1722421773509,0.01779969,66223.0,66222.0,0.74626704]
[1722421781865,0.01779969,66223.0,66222.0,0.74772764]
[1722421782548,0.01779969,66223.0,66222.0,0.74626704]
[1722421782894,0.01779969,66223.0,66222.0,0.74772764]
[1722421783786,0.01779969,66223.0,66222.0,0.74626704]
[1722421784076,0.01779969,66223.0,66222.0,0.74772764]
[1722421785302,0.01779969,66223.0,66222.0,0.74626704]
[1722421786711,0.01779969,66223.0,66222.0,1.35029504]
[1722421787877,0.01779969,66223.0,66222.0,1.65230904]
[1722421788076,0.01779969,66223.0,66222.0,1.73910904]
[1722421788398,0.01779969,66223.0,66222.0,1.75045153]
[1722421788563,0.00979969,66223.0,66222.0,1.75345153]
[1722421789880,0.00979969,66223.0,66222.0,1.75845153]
[1722421790540,0.00979969,66223.0,66222.0,1.75345153]
[1722421790847,0.00179969,66223.0,66222.0,1.76845153]
[1722421791088,0.00379969,66223.0,66222.0,1.78745153]
[1722421792079,0.001,66223.0,66222.0,3.59092613]
[1722421792224,0.001,66223.0,66222.0,4.49394113]
[1722421792426,0.001,66223.0,66222.0,4.59394113]
[1722421792789,0.001,66223.0,66222.0,4.59248053]
[1722421793177,0.001,66223.0,66222.0,4.58248053]
[1722421793516,0.002,66223.0,66222.0,4.59348053]
[1722421793942,0.00083,66229.0,66228.0,1.39028349]
[1722421794230,0.00083,66229.0,66228.0,1.76951653]
[1722421795284,0.00083,66229.0,66228.0,1.78151653]
[1722421796223,0.00083,66229.0,66228.0,1.76017404]
[1722421796425,0.00083,66229.0,66228.0,1.79317404]
[1722421796827,0.00083,66229.0,66228.0,1.79451653]
[1722421800458,0.00083,66229.0,66228.0,1.37438704]
[1722421800634,0.00083,66229.0,66228.0,1.07240004]
[1722421800839,0.00083,66229.0,66228.0,1.37438704]
[1722421817869,0.00083,66229.0,66228.0,1.38438704]
[1722421818075,0.00083,66229.0,66228.0,1.37438704]
[1722421820137,0.00083,66229.0,66228.0,1.47252953]
[1722421822443,0.00083,66229.0,66228.0,1.46118704]
[1722421822632,0.00083,66229.0,66228.0,1.47118704]
[1722421822804,0.00083,66229.0,66228.0,1.46118704]
[1722421823698,0.00083,66229.0,66228.0,1.47118704]
[1722421823926,0.00083,66229.0,66228.0,1.46118704]
[1722421826109,0.00083,66229.0,66228.0,1.47118704]
[1722421826309,0.00083,66229.0,66228.0,1.46118704]
[1722421828536,0.00083,66229.0,66228.0,1.47118704]
[1722421828744,0.00083,66229.0,66228.0,1.46118704]
[1722421828959,0.00083,66229.0,66228.0,1.37438704]
[1722421836256,0.00083,66229.0,66228.0,1.38438704]
[1722421836496,0.00083,66229.0,66228.0,1.37438704]
[1722421837110,0.00083,66229.0,66228.0,1.38572953]
[1722421837389,0.00083,66229.0,66228.0,1.37438704]
[1722421838567,0.00083,66229.0,66228.0,1.38438704]
[1722421839707,0.00083,66229.0,66228.0,1.38572953]
[1722421840385,0.00083,66229.0,66228.0,1.37438704]
[1722421841292,0.00083,66229.0,66228.0,1.38438704]
[1722421842242,0.00083,66229.0,66228.0,1.37438704]
[1722421846558,0.00083,66229.0,66228.0,1.38438704]
[1722421853331,0.00083,66229.0,66228.0,1.50986178]
[1722421854339,0.00083,66229.0,66228.0,1.44586178]
[1722421855024,0.00083,66229.0,66228.0,1.44586181]
[1722421857891,0.00083,66229.0,66228.0,1.43286181]
[1722421858142,0.14613,66229.0,66228.0,1.35906181]
[1722421858329,0.14613,66229.0,66228.0,0.29010781]
[1722421858489,0.14613,66229.0,66228.0,0.72910211]
[1722421858490,0.23636615,66229.0,66228.0,0.72910211]
[1722421858690,0.14613,66229.0,66228.0,0.44111511]
[1722421858891,0.14613,66229.0,66228.0,0.74310211]
[1722421859095,0.21381154,66229.0,66228.0,1.04508911]
[1722421859297,0.00083,66229.0,66228.0,1.42867611]
[1722421859538,0.00083,66229.0,66228.0,1.41467611]
[1722421860169,0.00083,66229.0,66228.0,1.42867611]
[1722421860341,0.00083,66229.0,66228.0,1.5268186]
[1722421861137,0.00083,66229.0,66228.0,1.8628056]
[1722421861351,0.00083,66229.0,66228.0,3.06266691]
[1722421861815,0.00083,66229.0,66228.0,4.54863481]
[1722421861960,0.00083,66229.0,66228.0,4.22215481]
[1722421864520,0.08353,66229.0,66228.0,1.36104715]
[1722421864963,0.08353,66229.0,66228.0,1.3610661]
[1722421865351,0.00083,66229.0,66228.0,1.3610661]
[1722421868384,0.00083,66229.0,66228.0,1.23558704]
[1722421868589,0.00083,66229.0,66228.0,1.44785964]
[1722421869203,0.00083,66229.0,66228.0,1.55520213]
[1722421869615,0.00083,66229.0,66228.0,1.91758913]
[1722421871460,0.00083,66229.0,66228.0,2.31699253]
[1722421871586,0.00083,66229.0,66228.0,2.63065118]
[1722421871785,0.00083,66229.0,66228.0,1.89211653]
[1722421872018,0.00083,66229.0,66228.0,3.02570283]
[1722421872426,0.00083,66229.0,66228.0,2.71204653]
[1722421872622,0.00083,66229.0,66228.0,3.02570288]
[1722421873531,0.00083,66229.0,66228.0,3.17323353]
[1722421873746,0.00083,66229.0,66228.0,3.48687836]
[1722421874544,0.00083,66229.0,66228.0,3.18489136]
[1722421875213,0.00083,66229.0,66228.0,3.02569136]
[1722421875423,0.00083,66229.0,66228.0,2.34368736]
[1722421875638,0.00083,66229.0,66228.0,2.39662908]
[1722421875857,0.00083,66229.0,66228.0,2.15550046]
[1722421876083,0.00083,66229.0,66228.0,2.12428846]
[1722421876297,0.00083,66229.0,66228.0,2.49547029]
[1722421876506,0.00083,66229.0,66228.0,2.11721653]
[1722421876707,0.00083,66229.0,66228.0,2.40331302]
[1722421877155,0.00083,66229.0,66228.0,2.40331305]
[1722421877360,0.00083,66229.0,66228.0,2.35037153]
[1722421877567,0.00083,66229.0,66228.0,2.03671653]
[1722421877772,0.00083,66229.0,66228.0,2.35036751]
[1722421879021,0.00083,66229.0,66228.0,2.03671653]
[1722421879226,0.00083,66229.0,66228.0,2.35036751]
[1722421882027,0.00083,66229.0,66228.0,2.3503678]
[1722421882708,0.00083,66229.0,66228.0,2.35036803]
[1722421883333,0.00083,66229.0,66228.0,2.32902554]
[1722421883529,0.00083,66229.0,66228.0,1.46104764]
[1722421885698,0.00083,66229.0,66228.0,1.46105934]
[1722421886314,0.13803,66229.0,66228.0,1.46105934]
[1722421886565,0.13803,66229.0,66228.0,1.15907234]
[1722421888811,0.13803,66229.0,66228.0,1.46105934]
[1722421889239,0.13803,66229.0,66228.0,1.46106384]
[1722421891563,0.06163,66229.0,66228.0,1.46106384]
[1722421892505,0.06163,66229.0,66228.0,1.33558704]
[1722421892706,0.06163,66229.0,66228.0,1.46106385]
[1722421895844,0.06163,66229.0,66228.0,1.46106365]
[1722421896046,0.06163,66229.0,66228.0,1.15907665]
[1722421897535,0.06163,66229.0,66228.0,1.46106365]
[1722421899216,0.06163,66229.0,66228.0,1.46106377]
[1722421902734,0.06163,66229.0,66228.0,1.46106379]
[1722421904162,0.00083,66229.0,66228.0,1.46106379]
[1722421905126,0.0507202,66232.0,66231.0,0.754932]
[1722421905284,0.0507202,66232.0,66231.0,1.03104179]
[1722421905898,0.0507202,66232.0,66231.0,0.90556504]
[1722421906108,0.0507202,66232.0,66231.0,1.03104188]
[1722421906673,0.0507202,66232.0,66231.0,1.04304188]
[1722421907321,0.0507202,66232.0,66231.0,1.34647548]
[1722421907485,0.0507202,66232.0,66231.0,1.34501488]
[1722421908135,0.0507202,66232.0,66231.0,1.35801488]
[1722421909492,0.0507202,66232.0,66231.0,1.35801479]
[1722421912880,0.0507202,66232.0,66231.0,1.35801501]
[1722421913895,0.0493202,66232.0,66231.0,1.35801501]
[1722421916044,0.0493202,66232.0,66231.0,1.23253804]
[1722421916252,0.0493202,66232.0,66231.0,1.35801514]
[1722421919042,0.0493202,66232.0,66231.0,1.05604214]
[1722421919241,0.0493202,66232.0,66231.0,0.93056504]
[1722421919452,0.0493202,66232.0,66231.0,1.05604214]
[1722421920500,0.0493202,66232.0,66231.0,0.93056504]
[1722421920707,0.0493202,66232.0,66231.0,1.05604231]
[1722421922863,0.0493202,66232.0,66231.0,1.05604698]
[1722421926426,0.0943669,66232.0,66231.0,1.05604698]
[1722421928520,0.0493202,66232.0,66231.0,1.05604698]
[1722421929375,0.11697989,66232.0,66231.0,1.05604593]
[1722421930001,0.11697989,66232.0,66231.0,1.05695893]
[1722421930420,0.11780989,66232.0,66231.0,1.05695893]
[1722421932208,0.5810022,66232.0,66231.0,0.30202693]
[1722421932531,0.5810022,66232.0,66231.0,0.17654604]
[1722421932871,0.8829702,66232.0,66231.0,0.17654604]
[1722421933703,0.88362771,66232.0,66231.0,0.17654604]
[1722421935683,0.58165971,66232.0,66231.0,0.17654604]
[1722421935923,0.88362771,66232.0,66231.0,0.17654604]
[1722421937075,0.88362771,66232.0,66231.0,0.27654604]
[1722421938540,0.58165971,66232.0,66231.0,0.27654604]
[1722421938952,0.1280502,66232.0,66231.0,0.27654604]
[1722421939165,0.27969171,66232.0,66231.0,0.27654604]
[1722421939370,0.58165971,66232.0,66231.0,0.27654604]
[1722421940190,0.12870771,66232.0,66231.0,0.27654604]
[1722421940681,0.27969171,66232.0,66231.0,0.27654604]
[1722421940926,0.12870771,66232.0,66231.0,0.27654604]
[1722421941123,0.05080771,66232.0,66231.0,0.27654604]
[1722421941327,0.00083,66232.0,66231.0,0.86710504]
[1722421941529,0.06841287,66232.0,66231.0,1.16907804]
[1722421941761,0.04588597,66232.0,66231.0,1.16907804]
[1722421941963,0.04588597,66232.0,66231.0,0.80700504]
[1722421942136,0.04588597,66232.0,66231.0,0.80846564]
[1722421942335,0.04589216,66232.0,66231.0,0.80700504]
[1722421942551,0.04589216,66232.0,66231.0,1.10897804]
[1722421943907,0.04589216,66232.0,66231.0,0.80700504]
[1722421944436,0.04589216,66232.0,66231.0,1.10897804]
[1722421945010,0.04589216,66232.0,66231.0,0.80700504]
[1722421945965,0.04589735,66232.0,66231.0,0.80700504]
[1722421946685,0.04589735,66232.0,66231.0,0.80846564]
[1722421947307,0.04589735,66232.0,66231.0,0.80700504]
[1722421947746,0.04589735,66232.0,66231.0,0.42753204]
[1722421947912,0.00083,66232.0,66231.0,0.42753204]
[1722421948292,0.29657151,66232.0,66231.0,0.27654604]
[1722421948494,0.40924086,66232.0,66231.0,0.27654604]
[1722421948694,0.29657151,66232.0,66231.0,0.27654604]
[1722421949384,0.14558751,66232.0,66231.0,0.27654604]
[1722421949754,0.29657151,66232.0,66231.0,0.27654604]
[1722421949915,0.59853951,66232.0,66231.0,0.27654604]
[1722421951305,0.90050751,66232.0,66231.0,0.27654604]
[1722421953968,1.20247551,66232.0,66231.0,0.27654604]
[1722421956702,1.20247551,66232.0,66231.0,0.26354604]
[1722421957455,1.20247551,66232.0,66231.0,0.25154604]
[1722421957860,0.90050751,66232.0,66231.0,0.25654604]
[1722421958267,0.82270751,66232.0,66231.0,0.25654604]
[1722421958643,1.20757551,66232.0,66231.0,0.25654604]
[1722421967161,1.29437551,66232.0,66231.0,0.25654604]
[1722421971879,1.42951432,66232.0,66231.0,0.25654604]
[1722421972510,1.29437551,66232.0,66231.0,0.25654604]
[1722421974866,1.4295409,66232.0,66231.0,0.25654604]
[1722421975036,1.29437551,66232.0,66231.0,0.25654604]
[1722421975562,1.4295409,66232.0,66231.0,0.25654604]
[1722421976023,1.42956038,66232.0,66231.0,0.25654604]
[1722421976445,1.30373891,66232.0,66231.0,0.25654604]
[1722421979450,1.3037383,66232.0,66231.0,0.25654604]
[1722421980027,1.2208383,66232.0,66231.0,0.25654604]
[1722421982581,1.2208391,66232.0,66231.0,0.25654604]
[1722421983783,1.2208391,66232.0,66231.0,0.105913]
[1722421983950,1.3035391,66232.0,66231.0,0.105913]
[1722421985182,1.6055071,66232.0,66231.0,0.105913]
[1722421985926,1.60550581,66232.0,66231.0,0.105913]
[1722421986203,1.66665575,66232.0,66231.0,0.105913]
[1722421986408,1.73850581,66232.0,66231.0,0.102913]
[1722421986534,1.7672058,66232.0,66231.0,0.102913]
[1722421987208,1.7682058,66232.0,66231.0,0.101913]
[1722421987427,1.7692058,66232.0,66231.0,0.102913]
[1722421987814,1.661429,66208.0,66200.0,0.00012]
[1722421988015,0.35111058,66201.0,66200.0,0.00012]
[1722421988213,0.84591974,66201.0,66200.0,0.00012]
[1722421988420,0.95521655,66201.0,66200.0,0.00012]
[1722421988625,1.25732655,66201.0,66200.0,0.00012]
[1722421988847,1.14484251,66201.0,66200.0,0.00012]
[1722421989093,1.14484251,66201.0,66200.0,0.02312]
[1722421989675,1.14484251,66201.0,66200.0,0.01112]
[1722421989990,1.14484251,66201.0,66200.0,0.01212]
[1722421990184,1.25716819,66201.0,66200.0,0.01212]
[1722421990360,1.25716819,66201.0,66200.0,0.00112]
[1722421990907,1.25716819,66201.0,66200.0,0.00212]
[1722421991146,1.55927819,66201.0,66200.0,0.00212]
[1722421991319,1.68116878,66201.0,66200.0,0.00212]
[1722421991675,1.72435251,66201.0,66200.0,0.00212]
[1722421991878,1.71435251,66201.0,66200.0,0.00212]
[1722421992055,1.72371039,66201.0,66200.0,0.00212]
[1722421992260,1.72371001,66201.0,66200.0,0.00212]
[1722421992968,1.73371001,66201.0,66200.0,0.00212]
[1722421993317,1.88440433,66201.0,66200.0,0.00212]
[1722421993526,1.88440433,66201.0,66200.0,0.00112]
[1722421993920,1.89040433,66201.0,66200.0,0.00212]
[1722421994124,1.99311347,66201.0,66200.0,0.00112]
[1722421994526,1.99711347,66201.0,66200.0,0.00112]
[1722421995117,1.83641915,66201.0,66200.0,0.00112]
[1722421995262,1.86143447,66201.0,66200.0,0.00112]
[1722421995483,1.78182164,66201.0,66200.0,0.00112]
[1722421995657,1.87143532,66201.0,66200.0,0.00112]
[1722421995859,1.86143532,66201.0,66200.0,0.00112]
[1722421996259,1.77182164,66201.0,66200.0,0.00112]
[1722421996696,1.72435251,66201.0,66200.0,0.00112]
[1722421997698,1.64663628,66201.0,66200.0,0.00112]
[1722421997900,1.73343628,66201.0,66200.0,0.00112]
[1722421999480,1.65203628,66201.0,66200.0,0.00112]
[1722421999612,1.58903628,66201.0,66200.0,0.00112]
[1722422008012,1.28692628,66201.0,66200.0,0.00112]
[1722422008255,1.26392628,66201.0,66200.0,0.00112]
[1722422011403,1.32542628,66201.0,66200.0,0.00112]
[1722422012312,1.46649891,66201.0,66200.0,0.00112]
[1722422012553,1.32542628,66201.0,66200.0,0.00112]
[1722422012798,1.26392628,66201.0,66200.0,0.00112]
[1722422014702,1.58903628,66201.0,66200.0,0.00112]
[1722422015753,1.59839425,66201.0,66200.0,0.00112]
[1722422018571,1.58903628,66201.0,66200.0,0.00112]
[1722422018920,1.59839429,66201.0,66200.0,0.00112]
[1722422020436,1.51159429,66201.0,66200.0,0.00112]
[1722422020631,1.59839429,66201.0,66200.0,0.00112]
[1722422025022,1.74908861,66201.0,66200.0,0.00112]
[1722422025227,1.60839923,66201.0,66200.0,0.00112]
[1722422025685,1.67565443,66201.0,66200.0,0.00112]
[1722422025986,1.83808486,66201.0,66200.0,0.00112]
[1722422026411,2.16258283,66201.0,66200.0,0.00112]
[1722422026726,2.15858283,66201.0,66200.0,0.00112]
[1722422026927,2.30927715,66201.0,66200.0,0.00112]
[1722422027143,2.18700123,66201.0,66200.0,0.00212]
[1722422027547,2.06890923,66201.0,66200.0,0.00112]
[1722422027772,2.07690923,66201.0,66200.0,0.00112]
[1722422027978,2.08790923,66201.0,66200.0,0.00212]
[1722422028375,2.06290923,66201.0,66200.0,0.00012]
[1722422028578,2.06291305,66201.0,66200.0,0.00012]
[1722422028800,2.09091305,66201.0,66200.0,0.00112]
[1722422030373,2.09091305,66201.0,66200.0,0.002033]
[1722422030374,2.1186778,66201.0,66200.0,0.002033]
[1722422030595,2.1186778,66201.0,66191.0,0.0005]
[1722422030596,1.97478751,66192.0,66191.0,0.0005]
[1722422030797,1.97478751,66192.0,66178.0,0.1416]
[1722422030798,0.45397251,66179.0,66178.0,0.1416]
[1722422030995,1.14519251,66179.0,66178.0,0.1416]
[1722422032499,1.15019251,66179.0,66178.0,0.1416]
[1722422032697,1.14519251,66179.0,66178.0,0.1416]
[1722422033104,1.15119251,66179.0,66178.0,0.1426]
[1722422033379,1.2452486,66179.0,66178.0,0.1426]
[1722422033553,1.15519251,66179.0,66178.0,0.1426]
[1722422034124,1.26776262,66179.0,66178.0,0.1426]
[1722422034324,1.15519251,66179.0,66178.0,0.1426]
[1722422034717,1.26776262,66179.0,66178.0,0.1426]
[1722422036087,1.15519251,66179.0,66178.0,0.1426]
[1722422037095,1.45740251,66179.0,66178.0,0.1426]
[1722422037299,1.45740251,66179.0,66178.0,0.001]
[1722422037300,1.81235308,66179.0,66178.0,0.001]
[1722422037502,1.56677568,66179.0,66178.0,0.001]
[1722422037709,1.58977568,66179.0,66178.0,0.001]
[1722422037951,1.59977568,66179.0,66178.0,0.001]
[1722422038161,1.74174533,66179.0,66178.0,0.001]
[1722422038356,1.58977529,66179.0,66178.0,0.001]
[1722422039152,1.50297529,66179.0,66178.0,0.001]
[1722422039395,1.72500257,66179.0,66178.0,0.0644]
[1722422039548,1.58977529,66179.0,66178.0,0.0644]
[1722422040364,1.50297529,66179.0,66178.0,0.0644]
[1722422040562,1.58040251,66179.0,66178.0,0.0644]
[1722422041161,1.55740251,66179.0,66178.0,0.0644]
[1722422041427,1.69260846,66179.0,66178.0,0.0644]
[1722422041631,1.55740251,66179.0,66178.0,0.0644]
[1722422041742,1.7019716,66179.0,66178.0,0.0644]
[1722422041954,1.56677633,66179.0,66178.0,0.0644]
[1722422042176,0.95298251,66179.0,66178.0,0.144]
[1722422042632,1.25519251,66179.0,66178.0,0.144]
[1722422043276,1.16839251,66179.0,66178.0,0.144]
[1722422045464,1.17776401,66179.0,66178.0,0.144]
[1722422045680,1.31288608,66179.0,66178.0,0.144]
[1722422045849,1.39752324,66179.0,66178.0,0.144]
[1722422046181,1.31288608,66179.0,66178.0,0.144]
[1722422046631,1.31288608,66179.0,66178.0,0.001]
[1722422046777,1.17776401,66179.0,66178.0,0.001]
[1722422047910,1.17776355,66179.0,66178.0,0.001]
[1722422049195,1.50297355,66179.0,66178.0,0.001]
[1722422051174,1.49360251,66179.0,66178.0,0.001]
[1722422051374,1.50297358,66179.0,66178.0,0.001]
[1722422052159,1.50297358,66179.0,66178.0,0.0823]
[1722422052330,1.50297358,66179.0,66178.0,0.1472]
[1722422053833,1.20076358,66179.0,66178.0,0.1472]
[1722422053989,1.20076351,66179.0,66178.0,0.1472]
[1722422054849,1.20076374,66179.0,66178.0,0.1472]
[1722422056395,1.20076374,66179.0,66178.0,0.1522]
[1722422056974,0.87555374,66179.0,66178.0,0.1522]
[1722422057185,1.01065372,66179.0,66178.0,0.1522]
[1722422057577,1.31286372,66179.0,66178.0,0.1522]
[1722422057777,1.17776374,66179.0,66178.0,0.1522]
[1722422057979,1.31286354,66179.0,66178.0,0.1522]
[1722422058297,1.17776404,66179.0,66178.0,0.1522]
[1722422058506,1.01065354,66179.0,66178.0,0.1522]
[1722422058800,0.87555404,66179.0,66178.0,0.1522]
[1722422058998,0.86618251,66179.0,66178.0,0.1522]
[1722422059780,0.26176251,66179.0,66178.0,0.31805304]
[1722422059982,0.07758848,66179.0,66178.0,0.30283304]
[1722422060186,0.10077255,66179.0,66178.0,0.30283304]
[1722422060503,0.10077255,66179.0,66178.0,0.45394004]
[1722422060504,0.01,66179.0,66178.0,0.45394004]
[1722422060847,0.006,66179.0,66178.0,0.75615504]
[1722422061006,0.06759269,66182.0,66181.0,0.1432]
[1722422061166,0.09077962,66183.0,66182.0,0.1432]
[1722422061167,0.00065751,66183.0,66182.0,0.1432]
[1722422061387,0.00065751,66183.0,66182.0,0.29383304]
[1722422061568,0.09013186,66184.0,66182.0,0.29383304]
[1722422061771,0.24122686,66184.0,66183.0,0.29383304]
[1722422061971,0.09013186,66184.0,66183.0,0.29383304]
[1722422062835,0.0901379,66184.0,66183.0,0.44492904]
[1722422063036,0.0901379,66184.0,66183.0,0.29483304]
[1722422063037,0.009,66184.0,66183.0,0.29483304]
[1722422064260,0.016,66184.0,66183.0,0.29483304]
[1722422065004,0.016,66184.0,66183.0,0.44592904]